fUSD/lending_fUSD_20240516
["ID","MTS","AMOUNT","RATE_DAILY","PERIOD"]
[327207201,1715898662883,-537.31,0.00012325,2]
[327207202,1715898662892,-648.03,0.00012325,2]
[327207203,1715898663061,-500.0,0.00012325,2]
[327207204,1715898663134,-500.0,0.00012325,2]
[327207205,1715898663146,-500.0,0.00012325,2]
[327207206,1715898663157,-500.0,0.00012325,2]
[327207207,1715898663167,-500.0,0.00012325,2]
[327207208,1715898663176,-768.34,0.00012325,2]
[327207209,1715898663185,-500.0,0.00012325,2]
[327207210,1715898663196,-500.0,0.00012325,2]
[327207211,1715898663205,-460.28117764,0.00012325,2]
[327207212,1715898663215,-500.0,0.00012325,2]
[327207213,1715898663224,-500.0,0.00012325,2]
[327207214,1715898663234,-500.0,0.00012325,2]
[327207215,1715898663243,-500.0,0.00012325,2]
[327207216,1715898663252,-500.0,0.00012325,2]
[327207217,1715898663260,-500.0,0.00012325,2]
[327207218,1715898663269,-531.36,0.00012325,2]
[327207219,1715898663279,-500.0,0.00012325,2]
[327207220,1715898663287,-500.0,0.00012325,2]
[327207221,1715898663297,-500.0,0.00012325,2]
[327207222,1715898663307,-508.11,0.00012325,2]
[327207223,1715898663316,-500.0,0.00012325,2]
[327207224,1715898663325,-500.0,0.00012325,2]
[327207225,1715898663334,-694.22,0.00012325,2]
[327207226,1715898663343,-500.0,0.00012325,2]
[327207227,1715898663352,-500.0,0.00012325,2]
[327207228,1715898663361,-500.0,0.00012325,2]
[327207229,1715898663371,-500.0,0.00012325,2]
[327207230,1715898663380,-500.0,0.00012325,2]
[327207231,1715898663389,-500.0,0.00012325,2]
[327207232,1715898663399,-500.0,0.00012325,2]
[327207233,1715898663411,-518.19,0.00012325,2]
[327207234,1715898663420,-500.0,0.00012325,2]
[327207235,1715898663433,-272.23542253,0.00012325,2]
[327207236,1715898663442,-500.0,0.00012325,2]
[327207237,1715898663451,-500.0,0.00012325,2]
[327207238,1715898663460,-670.96,0.00012325,2]
[327207239,1715898663470,-500.0,0.00012325,2]
[327207240,1715898663480,-500.0,0.00012325,2]
[327207241,1715898663489,-500.0,0.00012325,2]
[327207242,1715898663499,-500.0,0.00012325,2]
[327207243,1715898663509,-500.0,0.00012325,2]
[327207244,1715898663520,-500.0,0.00012325,2]
[327207245,1715898663529,-523.8070046,0.00012325,2]
[327207246,1715898663538,-526.36,0.00012325,2]
[327207247,1715898663547,-279.34882238,0.00012325,2]
[327207248,1715898663556,-500.0,0.00012325,2]
[327207249,1715898663566,-500.0,0.00012325,2]
[327207250,1715898663574,-500.0,0.00012325,2]
[327207251,1715898663583,-500.0,0.00012325,2]
[327207252,1715898663593,-500.0,0.00012325,2]
[327207253,1715898663602,-500.0,0.00012325,2]
[327207254,1715898663611,-500.0,0.00012325,2]
[327207255,1715898663620,-500.0,0.00012326,2]
[327207256,1715898663629,-157.051707,0.00012398,2]
[327207257,1715898663639,-157.051707,0.00012398,2]
[327207258,1715898663648,-157.051707,0.00012398,2]
[327207259,1715898663659,-157.051707,0.00012398,2]
[327207260,1715898663668,-25183.15758952,0.000124,2]
[327207261,1715898663677,-284.34696702,0.00012413,2]
[327207262,1715898663686,-157.051707,0.00012498,2]
[327207263,1715898663696,-157.051707,0.00012498,2]
[327207264,1715898663706,-157.051707,0.00012498,2]
[327207265,1715898663716,-157.051707,0.00012498,2]
[327207266,1715898663726,-500.0,0.00012499,2]
[327207267,1715898663737,-500.0,0.00012499,2]
[327207268,1715898663748,-252.30363368,0.000125,2]
[327207269,1715898663757,-155.0,0.000125,2]
[327207270,1715898663766,-1578.24,0.00012513,2]
[327207271,1715898663775,-500.0,0.00012513,2]
[327207272,1715898663784,-1863.63,0.00012513,2]
[327207273,1715898663793,-4913.81,0.00012513,2]
[327207274,1715898663802,-676.18,0.00012513,2]
[327207275,1715898663812,-1168.83,0.00012513,2]
[327207276,1715898663821,-1107.81,0.00012513,2]
[327207277,1715898663830,-4044.06,0.00012513,2]
[327207278,1715898663839,-1381.2,0.00012513,2]
[327207279,1715898663848,-603.22,0.00012513,2]
[327207280,1715898663857,-2223.61,0.00012513,2]
[327207281,1715898663867,-1409.4,0.00012513,2]
[327207282,1715898663876,-500.0,0.00012513,2]
[327207283,1715898663885,-5510.07,0.00012513,2]
[327207284,1715898663894,-1835.87,0.00012513,2]
[327207285,1715898663905,-764.02,0.00012513,2]
[327207286,1715898663914,-3522.13,0.00012513,2]
[327207287,1715898663923,-4217.95,0.00012513,2]
[327207288,1715898663933,-4766.26,0.00012513,2]
[327207289,1715898663942,-1625.36,0.00012513,2]
[327207290,1715898663951,-500.0,0.00012513,2]
[327207291,1715898663961,-1800.17,0.00012513,2]
[327207292,1715898663970,-500.0,0.00012513,2]
[327207293,1715898663979,-522.99,0.00012513,2]
[327207294,1715898663989,-1355.55,0.00012513,2]
[327207295,1715898663998,-1150.88,0.00012513,2]
[327207296,1715898664007,-13721.42,0.00012513,2]
[327207297,1715898664017,-5440.69,0.00012513,2]
[327207298,1715898664026,-3495.61,0.00012513,2]
[327207299,1715898664035,-1341.08,0.00012513,2]
[327207300,1715898664045,-827.98,0.00012514,2]
[327207301,1715898664054,-827.98,0.00012514,2]
[327207302,1715898664064,-827.98,0.00012514,2]
[327207303,1715898664073,-827.98,0.00012514,2]
[327207304,1715898664082,-828.07,0.00012514,2]
[327207305,1715898664091,-708.68,0.00012514,2]
[327207306,1715898664101,-708.68,0.00012514,2]
[327207307,1715898664111,-708.68,0.00012514,2]
[327207308,1715898664121,-708.68,0.00012514,2]
[327207309,1715898664130,-708.89,0.00012514,2]
[327207310,1715898664139,-1186.98,0.00012514,2]
[327207311,1715898664149,-1186.98,0.00012514,2]
[327207312,1715898664162,-1186.98,0.00012514,2]
[327207313,1715898664171,-1186.98,0.00012514,2]
[327207314,1715898664180,-1187.17,0.00012514,2]
[327207315,1715898664189,-1064.41,0.00012514,2]
[327207316,1715898664198,-1064.41,0.00012514,2]
[327207317,1715898664209,-1064.41,0.00012514,2]
[327207318,1715898664221,-1064.41,0.00012514,2]
[327207319,1715898664230,-1064.42,0.00012514,2]
[327207320,1715898664240,-564.35,0.00012514,2]
[327207321,1715898664251,-564.35,0.00012514,2]
[327207322,1715898664261,-564.35,0.00012514,2]
[327207323,1715898664270,-564.35,0.00012514,2]
[327207324,1715898664280,-564.47,0.00012514,2]
[327207325,1715898664290,-683.48,0.00012514,2]
[327207326,1715898664300,-683.48,0.00012514,2]
[327207327,1715898664309,-683.48,0.00012514,2]
[327207328,1715898664320,-683.48,0.00012514,2]
[327207329,1715898664331,-683.49,0.00012514,2]
[327207330,1715898664340,-500.0,0.00012515,2]
[327207331,1715898664350,-500.0,0.00012515,2]
[327207332,1715898664359,-345.78,0.00012515,2]
[327207333,1715898664369,-500.0,0.00012515,2]
[327207334,1715898664379,-500.0,0.00012515,2]
[327207335,1715898664389,-500.0,0.00012515,2]
[327207336,1715898664397,-189.46,0.00012515,2]
[327207337,1715898664409,-151.0,0.00012515,2]
[327207338,1715898664418,-151.0,0.00012515,2]
[327207339,1715898664427,-151.0,0.00012515,2]
[327207340,1715898664442,-3799.98,0.00012531,2]
[327207341,1715898664451,-157.051707,0.00012598,2]
[327207342,1715898664461,-157.051707,0.00012598,2]
[327207343,1715898664471,-157.051707,0.00012598,2]
[327207344,1715898664481,-1561.86172371,0.00012633,2]
[327207345,1715898664491,-284.34696702,0.00012657,2]
[327207346,1715898664500,-157.051707,0.00012698,2]
[327207347,1715898664512,-157.051707,0.00012698,2]
[327207348,1715898664522,-157.051707,0.00012698,2]
[327207349,1715898664531,-157.051707,0.00012698,2]
[327207350,1715898664540,-157.051707,0.00012698,2]
[327207351,1715898664549,-150.0,0.00012743,2]
[327207352,1715898664559,-150.0,0.00012748,2]
[327207353,1715898664568,-577.5,0.00012749,2]
[327207354,1715898664578,-500.0,0.00012749,2]
[327207355,1715898664588,-500.0,0.00012749,2]
[327207356,1715898664597,-1776.01,0.00012749,2]
[327207357,1715898664607,-725.43,0.00012749,2]
[327207358,1715898664616,-26428.79,0.00012749,2]
[327207359,1715898664627,-2565.52,0.00012749,2]
[327207360,1715898664637,-2785.62,0.00012749,2]
[327207361,1715898664646,-12650.30629629,0.0001275,2]
[327207362,1715898664659,-150.0,0.00012789,2]
[327207363,1715898664668,-157.051707,0.00012798,2]
[327207364,1715898664677,-157.051707,0.00012798,2]
[327207365,1715898664686,-157.051707,0.00012798,2]
[327207366,1715898664694,-157.051707,0.00012798,2]
[327207367,1715898664703,-157.051707,0.00012798,2]
[327207368,1715898664712,-2000.0,0.000128,2]
[327207369,1715898664721,-2000.0,0.000128,2]
[327207370,1715898664731,-150.0,0.00012824,2]
[327207371,1715898664740,-1663.32748739,0.00012846,2]
[327207372,1715898664749,-251.9683972,0.00012867,2]
[327207373,1715898664760,-11612.65860469,0.00012869,2]
[327207374,1715898664769,-25144.61566091,0.0001287,2]
[327207375,1715898664778,-1663.32748739,0.00012873,2]
[327207376,1715898664788,-150.0,0.00012881,2]
[327207377,1715898664797,-172.58,0.00012884,2]
[327207378,1715898664807,-157.051707,0.00012898,2]
[327207379,1715898664816,-157.051707,0.00012898,2]
[327207380,1715898664826,-157.051707,0.00012898,2]
[327207381,1715898664835,-157.051707,0.00012898,2]
[327207382,1715898664845,-271.9617,0.00012898,2]
[327207383,1715898664854,-3735.675,0.00012899,2]
[327207384,1715898664863,-441.38,0.00012899,2]
[327207385,1715898664873,-249.72,0.00012899,2]
[327207386,1715898664883,-500.0,0.00012899,2]
[327207387,1715898664892,-500.0,0.00012899,2]
[327207388,1715898664903,-558.0658659,0.000129,2]
[327207389,1715898664917,-7172.091848,0.000129,2]
[327207390,1715898664928,-196.89576948,0.000129,2]
[327207391,1715898664937,-155.0,0.000129,2]
[327207392,1715898664947,-174.44799409,0.000129,2]
[327207393,1715898664957,-1663.32748739,0.000129,2]
[327207394,1715898664966,-284.34696702,0.000129,2]
[327207395,1715898664977,-150.0,0.00012929,2]
[327207396,1715898664986,-5800.0,0.00012939,2]
[327207397,1715898664995,-616.15,0.00012946,2]
[327207398,1715898665004,-610.35,0.00012946,2]
[327207399,1715898665013,-500.0,0.00012946,2]
[327207400,1715898665023,-500.0,0.00012946,2]
[327207401,1715898665031,-500.0,0.00012946,2]
[327207402,1715898665040,-500.0,0.00012946,2]
[327207403,1715898665050,-511.23053625,0.00012946,2]
[327207404,1715898665060,-500.0,0.00012946,2]
[327207405,1715898665069,-500.0,0.00012946,2]
[327207406,1715898665078,-500.0,0.00012946,2]
[327207407,1715898665087,-500.0,0.00012946,2]
[327207408,1715898665096,-500.0,0.00012946,2]
[327207409,1715898665105,-500.0,0.00012946,2]
[327207410,1715898665114,-500.0,0.00012946,2]
[327207411,1715898665124,-500.0,0.00012946,2]
[327207412,1715898665132,-500.0,0.00012946,2]
[327207413,1715898665141,-500.0,0.00012946,2]
[327207414,1715898665150,-500.0,0.00012946,2]
[327207415,1715898665164,-500.0,0.00012946,2]
[327207416,1715898665173,-500.0,0.00012946,2]
[327207417,1715898665182,-500.0,0.00012946,2]
[327207418,1715898665191,-500.0,0.00012946,2]
[327207419,1715898665199,-500.0,0.00012946,2]
[327207420,1715898665208,-552.35,0.00012946,2]
[327207421,1715898665217,-500.0,0.00012946,2]
[327207422,1715898665226,-500.0,0.00012946,2]
[327207423,1715898665235,-500.0,0.00012946,2]
[327207424,1715898665244,-500.0,0.00012946,2]
[327207425,1715898665253,-500.0,0.00012946,2]
[327207426,1715898665262,-1158.6,0.00012946,2]
[327207427,1715898665271,-524.84,0.00012946,2]
[327207428,1715898665281,-744.28,0.00012946,2]
[327207429,1715898665290,-500.0,0.00012946,2]
[327207430,1715898665299,-500.0,0.00012946,2]
[327207431,1715898665310,-500.0,0.00012946,2]
[327207432,1715898665319,-500.0,0.00012946,2]
[327207433,1715898665329,-500.0,0.00012946,2]
[327207434,1715898665338,-500.0,0.00012946,2]
[327207435,1715898665347,-500.0,0.00012946,2]
[327207436,1715898665357,-270.4,0.00012946,2]
[327207437,1715898665367,-500.0,0.00012946,2]
[327207438,1715898665376,-1002.92,0.00012946,2]
[327207439,1715898665386,-964.12,0.00012946,2]
[327207440,1715898665395,-500.0,0.00012946,2]
[327207441,1715898665408,-500.0,0.00012946,2]
[327207442,1715898665417,-500.0,0.00012946,2]
[327207443,1715898665428,-500.0,0.00012946,2]
[327207444,1715898665443,-649.6,0.00012946,2]
[327207445,1715898665452,-500.0,0.00012946,2]
[327207446,1715898665461,-500.0,0.00012946,2]
[327207447,1715898665472,-763.3,0.00012946,2]
[327207448,1715898665481,-500.0,0.00012946,2]
[327207449,1715898665490,-649.26,0.00012946,2]
[327207450,1715898665499,-500.0,0.00012946,2]
[327207451,1715898665508,-567.37,0.00012946,2]
[327207452,1715898665518,-500.0,0.00012946,2]
[327207453,1715898665527,-638.43,0.00012946,2]
[327207454,1715898665536,-1573.5,0.00012946,2]
[327207455,1715898665545,-222.87,0.00012946,2]
[327207456,1715898665555,-637.27,0.00012946,2]
[327207457,1715898665565,-500.0,0.00012946,2]
[327207458,1715898665574,-1422.09,0.00012946,2]
[327207459,1715898665583,-1015.05,0.00012946,2]
[327207460,1715898665592,-500.0,0.00012946,2]
[327207461,1715898665602,-676.98,0.00012946,2]
[327207462,1715898665611,-500.0,0.00012946,2]
[327207463,1715898665620,-679.49,0.00012946,2]
[327207464,1715898665630,-500.0,0.00012946,2]
[327207465,1715898665640,-500.0,0.00012946,2]
[327207466,1715898665649,-1149.75,0.00012946,2]
[327207467,1715898665661,-500.0,0.00012946,2]
[327207468,1715898665670,-1159.57,0.00012946,2]
[327207469,1715898665679,-1119.18,0.00012946,2]
[327207470,1715898665688,-864.92,0.00012946,2]
[327207471,1715898665697,-500.0,0.00012946,2]
[327207472,1715898665706,-1717.67,0.00012946,2]
[327207473,1715898665715,-1789.55,0.00012946,2]
[327207474,1715898665724,-500.0,0.00012946,2]
[327207475,1715898665733,-521.2,0.00012946,2]
[327207476,1715898665742,-5800.0,0.00012947,2]
[327207477,1715898665751,-5800.0,0.00012956,2]
[327207478,1715898665760,-800.0,0.00012959,2]
[327207479,1715898665769,-5800.0,0.00012964,2]
[327207480,1715898665778,-2067.41781312,0.00012968,2]
[327207481,1715898665787,-880.89357028,0.00012968,2]
[327207482,1715898665796,-156.89770339,0.00012968,2]
[327207483,1715898665805,-5800.0,0.00012973,2]
[327207484,1715898665815,-5800.0,0.00012981,2]
[327207485,1715898665824,-269.43582416,0.00012985,2]
[327207486,1715898665833,-4594.27005244,0.00012986,2]
[327207487,1715898665842,-5800.0,0.0001299,2]
[327207488,1715898665852,-151.0,0.0001299,2]
[327207489,1715898665861,-151.0,0.0001299,2]
[327207490,1715898665870,-151.0,0.0001299,2]
[327207491,1715898665880,-151.0,0.0001299,2]
[327207492,1715898665890,-151.0,0.0001299,2]
[327207493,1715898665900,-151.0,0.0001299,2]
[327207494,1715898665912,-151.0,0.0001299,2]
[327207495,1715898665921,-151.0,0.0001299,2]
[327207496,1715898665930,-151.0,0.0001299,2]
[327207497,1715898665939,-2311.9293687,0.00012991,2]
[327207498,1715898665949,-2311.9293687,0.00012991,2]
[327207499,1715898665959,-2311.9293687,0.00012991,2]
[327207500,1715898666107,-2311.9293687,0.00012991,2]
[327207501,1715898666122,-2311.9293687,0.00012991,2]
[327207502,1715898666132,-417681.18244307,0.00012994,2]
[327207503,1715898666141,-157.051707,0.00012994,2]
[327207504,1715898666151,-157.051707,0.00012994,2]
[327207505,1715898666162,-157.051707,0.00012994,2]
[327207506,1715898666171,-157.051707,0.00012994,2]
[327207507,1715898666180,-157.051707,0.00012994,2]
[327207508,1715898666189,-1131640.39301022,0.00012994,2]
[327207509,1715898666199,-157.051707,0.00012995,2]
[327207510,1715898666208,-157.051707,0.00012995,2]
[327207511,1715898666218,-157.051707,0.00012995,2]
[327207512,1715898666227,-157.051707,0.00012995,2]
[327207513,1715898666237,-577.5,0.00012995,2]
[327207514,1715898666249,-577.5,0.00012995,2]
[327207515,1715898666259,-577.5,0.00012995,2]
[327207516,1715898666269,-577.5,0.00012995,2]
[327207517,1715898666279,-577.5,0.00012995,2]
[327207518,1715898666289,-577.5,0.00012995,2]
[327207519,1715898666298,-577.5,0.00012995,2]
[327207520,1715898666307,-500.0,0.00012995,2]
[327207521,1715898666317,-500.0,0.00012995,2]
[327207522,1715898666326,-500.0,0.00012995,2]
[327207523,1715898666336,-500.0,0.00012995,2]
[327207524,1715898666346,-500.0,0.00012995,2]
[327207525,1715898666356,-500.0,0.00012995,2]
[327207526,1715898666366,-500.0,0.00012995,2]
[327207527,1715898666376,-500.0,0.00012995,2]
[327207528,1715898666385,-500.0,0.00012995,2]
[327207529,1715898666394,-500.0,0.00012995,2]
[327207530,1715898666406,-500.0,0.00012995,2]
[327207531,1715898666415,-500.0,0.00012995,2]
[327207532,1715898666424,-500.0,0.00012995,2]
[327207533,1715898666438,-500.0,0.00012995,2]
[327207534,1715898666448,-1776.01,0.00012995,2]
[327207535,1715898666456,-1776.01,0.00012995,2]
[327207536,1715898666465,-1776.01,0.00012995,2]
[327207537,1715898666476,-1776.01,0.00012995,2]
[327207538,1715898666485,-1776.01,0.00012995,2]
[327207539,1715898666494,-1776.01,0.00012995,2]
[327207540,1715898666503,-1776.01,0.00012995,2]
[327207541,1715898666515,-725.43,0.00012995,2]
[327207542,1715898666524,-725.43,0.00012995,2]
[327207543,1715898666533,-725.43,0.00012995,2]
[327207544,1715898666543,-725.43,0.00012995,2]
[327207545,1715898666552,-725.43,0.00012995,2]
[327207546,1715898666561,-725.43,0.00012995,2]
[327207547,1715898666571,-725.43,0.00012995,2]
[327207548,1715898666580,-26428.79,0.00012995,2]
[327207549,1715898666589,-26428.79,0.00012995,2]
[327207550,1715898666599,-26428.79,0.00012995,2]
[327207551,1715898666609,-26428.79,0.00012995,2]
[327207552,1715898666618,-26428.79,0.00012995,2]
[327207553,1715898666628,-26428.79,0.00012995,2]
[327207554,1715898666637,-26428.79,0.00012995,2]
[327207555,1715898666646,-2565.52,0.00012995,2]
[327207556,1715898666660,-2565.52,0.00012995,2]
[327207557,1715898666669,-2565.52,0.00012995,2]
[327207558,1715898666678,-2565.52,0.00012995,2]
[327207559,1715898666687,-2565.52,0.00012995,2]
[327207560,1715898666699,-2565.52,0.00012995,2]
[327207561,1715898666707,-2565.52,0.00012995,2]
[327207562,1715898666717,-2785.62,0.00012995,2]
[327207563,1715898666726,-2785.62,0.00012995,2]
[327207564,1715898666736,-2785.62,0.00012995,2]
[327207565,1715898666746,-2785.62,0.00012995,2]
[327207566,1715898666755,-2785.62,0.00012995,2]
[327207567,1715898666765,-2785.62,0.00012995,2]
[327207568,1715898666775,-2785.62,0.00012995,2]
[327207569,1715898666784,-157.051707,0.00012996,2]
[327207570,1715898666794,-157.051707,0.00012996,2]
[327207571,1715898666803,-157.051707,0.00012996,2]
[327207572,1715898666812,-157.051707,0.00012996,2]
[327207573,1715898666822,-151.0,0.00012996,2]
[327207574,1715898666832,-151.0,0.00012996,2]
[327207575,1715898666843,-151.0,0.00012996,2]
[327207576,1715898666853,-151.0,0.00012996,2]
[327207577,1715898666864,-151.0,0.00012996,2]
[327207578,1715898666873,-166.141674,0.00012996,2]
[327207579,1715898666883,-181.503734,0.00012996,2]
[327207580,1715898666893,-181.503734,0.00012996,2]
[327207581,1715898666902,-151.071758,0.00012996,2]
[327207582,1715898666917,-181.503734,0.00012996,2]
[327207583,1715898666926,-181.503734,0.00012996,2]
[327207584,1715898666935,-151.0,0.00012996,2]
[327207585,1715898666945,-151.0,0.00012996,2]
[327207586,1715898666955,-2311.9293687,0.00012996,2]
[327207587,1715898666965,-151.0,0.00012996,2]
[327207588,1715898666975,-151.0,0.00012996,2]
[327207589,1715898666985,-151.0,0.00012996,2]
[327207590,1715898666996,-151.0,0.00012996,2]
[327207591,1715898667005,-151.0,0.00012996,2]
[327207592,1715898667015,-151.0,0.00012996,2]
[327207593,1715898667024,-151.0,0.00012996,2]
[327207594,1715898667033,-3188.471356,0.00012996,2]
[327207595,1715898667042,-3188.471356,0.00012996,2]
[327207596,1715898667051,-151.0,0.00012996,2]
[327207597,1715898667060,-151.0,0.00012996,2]
[327207598,1715898667069,-3188.471356,0.00012996,2]
[327207599,1715898667078,-3188.471356,0.00012996,2]
[327207600,1715898667088,-151.0,0.00012996,2]
[327207601,1715898667097,-249.700089,0.00012996,2]
[327207602,1715898667106,-249.700089,0.00012996,2]
[327207603,1715898667115,-151.0,0.00012996,2]
[327207604,1715898667125,-249.700089,0.00012996,2]
[327207605,1715898667134,-249.700089,0.00012996,2]
[327207606,1715898667143,-223.460639,0.00012996,2]
[327207607,1715898667152,-223.460639,0.00012996,2]
[327207608,1715898667164,-223.460639,0.00012996,2]
[327207609,1715898667174,-223.460639,0.00012996,2]
[327207610,1715898667184,-151.0,0.00012996,2]
[327207611,1715898667193,-292.764181,0.00012996,2]
[327207612,1715898667202,-292.764181,0.00012996,2]
[327207613,1715898667212,-292.764181,0.00012996,2]
[327207614,1715898667223,-292.764181,0.00012996,2]
[327207615,1715898667232,-151.0,0.00012996,2]
[327207616,1715898667241,-151.0,0.00012996,2]
[327207617,1715898667251,-151.0,0.00012996,2]
[327207618,1715898667260,-1000.0,0.00012997,2]
[327207619,1715898667270,-1063.06077755,0.00012997,2]
[327207620,1715898667279,-157.051707,0.00012997,2]
[327207621,1715898667292,-157.051707,0.00012997,2]
[327207622,1715898667301,-157.051707,0.00012997,2]
[327207623,1715898667311,-157.051707,0.00012997,2]
[327207624,1715898667322,-250.40357429,0.00012997,2]
[327207625,1715898667333,-676.18,0.00012997,2]
[327207626,1715898667342,-4044.06,0.00012997,2]
[327207627,1715898667353,-603.22,0.00012997,2]
[327207628,1715898667362,-1409.4,0.00012997,2]
[327207629,1715898667371,-1835.87,0.00012997,2]
[327207630,1715898667381,-3522.13,0.00012997,2]
[327207631,1715898667390,-577.5,0.00012997,2]
[327207632,1715898667399,-1625.36,0.00012997,2]
[327207633,1715898667411,-500.0,0.00012997,2]
[327207634,1715898667420,-500.0,0.00012997,2]
[327207635,1715898667429,-1800.17,0.00012997,2]
[327207636,1715898667441,-500.0,0.00012997,2]
[327207637,1715898667451,-500.0,0.00012997,2]
[327207638,1715898667460,-522.99,0.00012997,2]
[327207639,1715898667469,-1355.55,0.00012997,2]
[327207640,1715898667479,-1150.88,0.00012997,2]
[327207641,1715898667488,-1776.01,0.00012997,2]
[327207642,1715898667497,-725.43,0.00012997,2]
[327207643,1715898667507,-13721.42,0.00012997,2]
[327207644,1715898667517,-26428.79,0.00012997,2]
[327207645,1715898667526,-2565.52,0.00012997,2]
[327207646,1715898667537,-150.0,0.00012997,2]
[327207647,1715898667546,-2785.62,0.00012997,2]
[327207648,1715898667556,-1341.08,0.00012997,2]
[327207649,1715898667567,-5000.0,0.00012998,2]
[327207650,1715898667577,-1580.07063343,0.00012998,2]
[327207651,1715898667586,-155.0,0.00012998,2]
[327207652,1715898667595,-410.03425881,0.00012998,2]
[327207653,1715898667604,-5800.0,0.00012998,2]
[327207654,1715898667614,-500.0,0.00012998,2]
[327207655,1715898667623,-500.0,0.00012998,2]
[327207656,1715898667633,-616.15,0.00012998,2]
[327207657,1715898667643,-616.15,0.00012998,2]
[327207658,1715898667652,-610.35,0.00012998,2]
[327207659,1715898667663,-610.35,0.00012998,2]
[327207660,1715898667672,-500.0,0.00012998,2]
[327207661,1715898667681,-500.0,0.00012998,2]
[327207662,1715898667691,-500.0,0.00012998,2]
[327207663,1715898667700,-500.0,0.00012998,2]
[327207664,1715898667709,-500.0,0.00012998,2]
[327207665,1715898667719,-500.0,0.00012998,2]
[327207666,1715898667728,-500.0,0.00012998,2]
[327207667,1715898667738,-500.0,0.00012998,2]
[327207668,1715898667748,-500.0,0.00012998,2]
[327207669,1715898667757,-500.0,0.00012998,2]
[327207670,1715898667767,-500.0,0.00012998,2]
[327207671,1715898667776,-500.0,0.00012998,2]
[327207672,1715898667785,-500.0,0.00012998,2]
[327207673,1715898667795,-500.0,0.00012998,2]
[327207674,1715898667804,-500.0,0.00012998,2]
[327207675,1715898667813,-368.24,0.00012998,2]
[327207676,1715898667823,-500.0,0.00012998,2]
[327207677,1715898667832,-500.0,0.00012998,2]
[327207678,1715898667842,-500.0,0.00012998,2]
[327207679,1715898667852,-609.12032035,0.00012998,2]
[327207680,1715898667861,-500.0,0.00012998,2]
[327207681,1715898667871,-500.0,0.00012998,2]
[327207682,1715898667880,-500.0,0.00012998,2]
[327207683,1715898667889,-500.0,0.00012998,2]
[327207684,1715898667899,-500.0,0.00012998,2]
[327207685,1715898667909,-500.0,0.00012998,2]
[327207686,1715898667918,-500.0,0.00012998,2]
[327207687,1715898667927,-500.0,0.00012998,2]
[327207688,1715898667936,-500.0,0.00012998,2]
[327207689,1715898667945,-500.0,0.00012998,2]
[327207690,1715898667955,-500.0,0.00012998,2]
[327207691,1715898667964,-500.0,0.00012998,2]
[327207692,1715898667973,-500.0,0.00012998,2]
[327207693,1715898667983,-500.0,0.00012998,2]
[327207694,1715898667993,-552.35,0.00012998,2]
[327207695,1715898668002,-552.35,0.00012998,2]
[327207696,1715898668012,-500.0,0.00012998,2]
[327207697,1715898668021,-500.0,0.00012998,2]
[327207698,1715898668031,-500.0,0.00012998,2]
[327207699,1715898668041,-500.0,0.00012998,2]
[327207700,1715898668050,-500.0,0.00012998,2]